[Event "AUT-ch U14 Boys 2022"]
[Site "Sankt Veit an der Glan"]
[Date "2022.04.10"]
[Round "1"]
[White "Kienboeck, Samuel"]
[Black "Haselsberger, Armin"]
[Result "0-1"]
[ECO "B11"]
[WhiteElo "1068"]
[BlackElo "1541"]
[Annotator "NA RC"]
[PlyCount "67"]
[EventDate "2022.04.11"]
[EventType "swiss"]
[EventCountry "AUT"]
[SourceTitle "playchess.com"]
[Source "ChessBase"]
[SourceQuality "1"]
[TimeControl "5400+30"]

1. e4 {[%emt 0:00:06]} c6 {[%emt 0:00:29]} 2. d3 {[%emt 0:00:57]} d5 {[%emt 0:00:49]} 3. Nc3 {[%emt 0:05:05]} d4 {[%emt 0:02:23]} 4. Nce2 {[%emt 0:01:18]} Bg4 {[%emt 0:02:39]} 5. h3 {[%emt 0:03:09]} Bh5 {[%emt 0:00:43]} 6. g4 {[%emt 0:03:56]} Bg6 {[%emt 0:00:10]} 7. Bf4 {[%emt 0:03:02]} c5 {[%emt 0:05:01]} 8. Nf3 {[%emt 0:07:11]} Nc6 {[%emt 0:02:58]} 9. c3 {[%emt 0:06:03]} a6 {[%emt 0:10:21]} 10. Ne5 {[%emt 0:05:25]} Rc8 {[%emt 0:02:22]} 11. Qa4 {[%emt 0:04:16]} Qb6 {[%emt 0:11:42]} 12. cxd4 {[%emt 0:07:34]} Qxb2 {[%emt 0:02:06]} 13. Rc1 {[%emt 0:02:40]} Qb4+ {[%emt 0:02:30]} 14. Qxb4 {[%emt 0:01:48]} Nxb4 {[%emt 0:00:15]} 15. Rxc5 {[%emt 0:04:32]} Rxc5 {[%emt 0:02:43]} 16. dxc5 {[%emt 0:02:02]} e6 {[%emt 0:01:31]} 17. Nc3 {[%emt 0:09:03]} Bxc5 {[%emt 0:03:19]} 18. Na4 {[%emt 0:04:38]} Bd4 {[%emt 0:04:17]} 19. Nc4 {[%emt 0:00:58]} b5 {[%emt 0:01:39]} 20. Nd6+ {[%emt 0:01:01]} Kd7 {[%emt 0:00:27]} 21. a3 {[%emt 0:02:42]} Nc6 {[%emt 0:01:18]} 22. Ke2 {[%emt 0:05:02]} bxa4 {[%emt 0:01:41]} 23. Bg2 {[%emt 0:01:45]} e5 {[%emt 0:00:43]} 24. Bxe5 {[%emt 0:04:07]} Bxe5 {[%emt 0:03:42]} 25. Nc4 {[%emt 0:03:54]} Nge7 {[%emt 0:01:43]} 26. Nxe5+ {[%emt 0:00:53]} Nxe5 {[%emt 0:00:08]} 27. f4 {[%emt 0:00:05]} N5c6 {[%emt 0:01:59]} 28. f5 {[%emt 0:00:14]} Rb8 {[%emt 0:00:21]} 29. Ke3 {[%emt 0:00:52]} Rb3 {[%emt 0:00:50]} 30. fxg6 {[%emt 0:01:23]} Nxg6 {[%emt 0:00:20]} 31. Rf1 {[%emt 0:01:04]} Nge5 {[%emt 0:00:37]} 32. Rf5 {[%emt 0:00:49]} Rxd3+ {[%emt 0:00:21]} 33. Kf4 {[%emt 0:00:20]} Ke6 {[%emt 0:01:17]} 34. Bf1 {[%emt 0:00:50]} 0-1

[Event "AUT-ch U14 Boys 2022"]
[Site "Sankt Veit an der Glan"]
[Date "2022.04.10"]
[Round "2"]
[White "Nguyen, Le Minh Phu"]
[Black "Gruenwald, Simon"]
[Result "1-0"]
[ECO "D10"]
[WhiteElo "2080"]
[BlackElo "1584"]
[Annotator "NA RC"]
[PlyCount "81"]
[EventDate "2022.04.11"]
[EventType "swiss"]
[EventCountry "AUT"]
[SourceTitle "playchess.com"]
[Source "ChessBase"]
[SourceQuality "1"]
[TimeControl "5400+30"]

1. d4 {[%emt 0:00:03]} d5 {[%emt 0:00:04]} 2. c4 {[%emt 0:00:09]} c6 {[%emt 0:00:02]} 3. Nc3 {[%emt 0:00:07]} Nf6 {[%emt 0:00:01]} 4. cxd5 {[%emt 0:00:06]} cxd5 {[%emt 0:00:04]} 5. Bf4 {[%emt 0:00:07]} Qb6 {[%emt 0:00:05]} 6. Qd2 {[%emt 0:06:44]} Nc6 {[%emt 0:00:43]} 7. e3 {[%emt 0:00:12]} a6 {[%emt 0:01:22]} 8. Rc1 {[%emt 0:01:49]} e6 {[%emt 0:05:36]} 9. Bd3 {[%emt 0:00:26]} Be7 {[%emt 0:01:09]} 10. Nf3 {[%emt 0:00:10]} O-O {[%emt 0:00:20]} 11. O-O {[%emt 0:00:05]} Bd7 {[%emt 0:01:32]} 12. Na4 {[%emt 0:01:45]} Qb4 {[%emt 0:02:44]} 13. Nc5 {[%emt 0:00:34]} Qxd2 {[%emt 0:02:17]} 14. Nxd2 {[%emt 0:00:09]} Nb4 {[%emt 0:05:46]} 15. Nxd7 {[%emt 0:10:21]} Nxd3 {[%emt 0:04:53]} 16. Nxf8 {[%emt 0:00:11]} Nxc1 {[%emt 0:00:05]} 17. Rxc1 {[%emt 0:00:04]} Kxf8 {[%emt 0:00:13]} 18. h3 {[%emt 0:05:20]} Ne8 {[%emt 0:08:28]} 19. Nb3 {[%emt 0:00:26]} Bd6 {[%emt 0:02:20]} 20. Be5 {[%emt 0:06:04]} Bxe5 {[%emt 0:03:12]} 21. dxe5 {[%emt 0:00:07]} Ke7 {[%emt 0:00:45]} 22. Kf1 {[%emt 0:02:29]} Kd8 {[%emt 0:01:31]} 23. Nc5 {[%emt 0:00:42]} b6 {[%emt 0:00:26]} 24. Na4 {[%emt 0:00:57]} b5 {[%emt 0:06:54]} 25. Nc5 {[%emt 0:02:35]} a5 {[%emt 0:11:57]} 26. Ke2 {[%emt 0:01:40]} Ra7 {[%emt 0:11:25]} 27. Kd3 {[%emt 0:00:28]} Nc7 {[%emt 0:00:20]} 28. f4 {[%emt 0:01:02]} Na6 {[%emt 0:01:14]} 29. Nxa6 {[%emt 0:01:27]} Rxa6 {[%emt 0:00:19]} 30. Rc5 {[%emt 0:00:08]} Rb6 {[%emt 0:01:55]} 31. b3 {[%emt 0:01:37]} Kd7 {[%emt 0:01:39]} 32. g4 {[%emt 0:01:18]} a4 {[%emt 0:08:45]} 33. b4 {[%emt 0:00:13]} h6 {[%emt 0:02:00]} 34. h4 {[%emt 0:00:50]} Rb7 {[%emt 0:01:11]} 35. h5 {[%emt 0:02:17]} g6 {[%emt 0:02:42]} 36. Kd4 {[%emt 0:02:12]} Rb8 {[%emt 0:03:05]} 37. a3 {[%emt 0:01:13]} Rb6 {[%emt 0:03:55]} 38. Rc2 {[%emt 0:03:50]} Rc6 {[%emt 0:00:55]} 39. Rxc6 {[%emt 0:00:23]} Kxc6 {[%emt 0:00:07]} 40. g5 {[%emt 0:00:03]} hxg5 {[%emt 0:01:48]} 41. h6 {[%emt 0:00:05]} 1-0

[Event "AUT-ch U14 Boys 2022"]
[Site "Sankt Veit an der Glan"]
[Date "2022.04.10"]
[Round "2"]
[White "Geroe, Leonhard"]
[Black "Maier, Tobias"]
[Result "1-0"]
[ECO "C54"]
[WhiteElo "1935"]
[BlackElo "1388"]
[Annotator "NA RC"]
[PlyCount "53"]
[EventDate "2022.04.11"]
[EventType "swiss"]
[EventCountry "AUT"]
[SourceTitle "playchess.com"]
[Source "ChessBase"]
[SourceQuality "1"]
[TimeControl "5400+30"]

1. e4 {[%emt 0:00:03]} e5 {[%emt 0:00:07]} 2. Nf3 {[%emt 0:00:05]} Nc6 {[%emt 0:00:04]} 3. Bc4 {[%emt 0:00:06]} Bc5 {[%emt 0:00:06]} 4. c3 {[%emt 0:00:26]} Nf6 {[%emt 0:00:09]} 5. d3 {[%emt 0:00:09]} d6 {[%emt 0:00:13]} 6. O-O {[%emt 0:01:04]} a6 {[%emt 0:00:55]} 7. Bb3 {[%emt 0:04:20]} Ba7 {[%emt 0:02:03]} 8. Nbd2 {[%emt 0:01:49]} h6 {[%emt 0:02:22]} 9. Nc4 {[%emt 0:08:14]} b5 {[%emt 0:04:34]} 10. Ne3 {[%emt 0:00:38]} Na5 {[%emt 0:01:35]} 11. Bc2 {[%emt 0:02:07]} c5 {[%emt 0:01:19]} 12. d4 {[%emt 0:04:50]} exd4 {[%emt 0:20:21]} 13. cxd4 {[%emt 0:00:20]} O-O {[%emt 0:00:35]} 14. Bd2 {[%emt 0:23:48]} cxd4 {[%emt 0:06:48]} 15. Nxd4 {[%emt 0:03:23]} Bb7 {[%emt 0:11:45]} 16. Nef5 {[%emt 0:10:38]} Bxe4 {[%emt 0:11:59]} 17. Bxe4 {[%emt 0:05:02]} Nxe4 {[%emt 0:00:20]} 18. Qg4 {[%emt 0:01:14]} Bxd4 {[%emt 0:02:36]} 19. Bxh6 {[%emt 0:03:57]} Bf6 {[%emt 0:27:59]} 20. Bxg7 {[%emt 0:01:34]} Ng5 {[%emt 0:00:24]} 21. Bxf6 {[%emt 0:00:51]} Qxf6 {[%emt 0:00:08]} 22. f4 {[%emt 0:01:02]} Nc4 {[%emt 0:01:13]} 23. fxg5 {[%emt 0:00:51]} Qxb2 {[%emt 0:03:21]} 24. Ne7+ {[%emt 0:01:31]} Kg7 {[%emt 0:00:19]} 25. Qh5 {[%emt 0:00:33]} f5 {[%emt 0:01:06]} 26. Qg6+ {[%emt 0:00:10]} Kh8 {[%emt 0:00:21]} 27. Qh6# {[%emt 0:00:09]} 1-0

[Event "AUT-ch U14 Boys 2022"]
[Site "Sankt Veit an der Glan"]
[Date "2022.04.10"]
[Round "2"]
[White "Schwarz, Felix"]
[Black "Roessler, Felix"]
[Result "1-0"]
[ECO "D45"]
[WhiteElo "1831"]
[BlackElo "1512"]
[Annotator "NA RC"]
[PlyCount "103"]
[EventDate "2022.04.11"]
[EventType "swiss"]
[EventCountry "AUT"]
[SourceTitle "playchess.com"]
[Source "ChessBase"]
[SourceQuality "1"]
[TimeControl "5400+30"]

1. Nf3 {[%emt 0:00:29]} d5 {[%emt 0:00:06]} 2. e3 {[%emt 0:00:05]} Nf6 {[%emt 0:00:07]} 3. c4 {[%emt 0:00:12]} c6 {[%emt 0:00:13]} 4. Nc3 {[%emt 0:00:10]} e6 {[%emt 0:00:43]} 5. d4 {[%emt 0:00:35]} Bd6 {[%emt 0:00:36]} 6. Be2 {[%emt 0:00:41]} Nbd7 {[%emt 0:00:23]} 7. O-O {[%emt 0:00:52]} O-O {[%emt 0:00:09]} 8. b3 {[%emt 0:00:23]} Re8 {[%emt 0:00:41]} 9. Bb2 {[%emt 0:00:45]} Nf8 {[%emt 0:01:17]} 10. Rc1 {[%emt 0:02:56]} Ng6 {[%emt 0:00:21]} 11. cxd5 {[%emt 0:01:03]} exd5 {[%emt 0:01:43]} 12. Re1 {[%emt 0:01:12]} Bg4 {[%emt 0:04:44]} 13. Nd2 {[%emt 0:01:25]} Bxe2 {[%emt 0:02:10]} 14. Nxe2 {[%emt 0:00:11]} Qe7 {[%emt 0:08:26]} 15. Qc2 {[%emt 0:01:22]} Ng4 {[%emt 0:01:09]} 16. Ng3 {[%emt 0:02:51]} Qf6 {[%emt 0:05:42]} 17. Nf3 {[%emt 0:03:12]} Nh4 {[%emt 0:01:31]} 18. Nxh4 {[%emt 0:01:16]} Qxh4 {[%emt 0:00:18]} 19. h3 {[%emt 0:00:36]} Nxe3 {[%emt 0:08:42]} 20. Rxe3 {[%emt 0:02:25]} Rxe3 {[%emt 0:00:31]} 21. Nf5 {[%emt 0:00:34]} Qg5 {[%emt 0:15:18]} 22. Nxe3 {[%emt 0:00:50]} Bf4 {[%emt 0:00:19]} 23. Re1 {[%emt 0:09:37]} Re8 {[%emt 0:00:25]} 24. Bc1 {[%emt 0:00:18]} Re6 {[%emt 0:00:45]} 25. Qd1 {[%emt 0:01:42]} Re4 {[%emt 0:06:05]} 26. Bd2 {[%emt 0:03:25]} h5 {[%emt 0:04:46]} 27. Nf1 {[%emt 0:00:48]} Rxd4 {[%emt 0:02:01]} 28. Bxf4 {[%emt 0:02:01]} Rxf4 {[%emt 0:03:20]} 29. Ng3 {[%emt 0:00:28]} Rh4 {[%emt 0:02:04]} 30. Qd3 {[%emt 0:01:06]} g6 {[%emt 0:01:38]} 31. Qe3 {[%emt 0:01:26]} Qxe3 {[%emt 0:01:03]} 32. Rxe3 {[%emt 0:00:10]} f5 {[%emt 0:00:07]} 33. Ne2 {[%emt 0:00:49]} Re4 {[%emt 0:00:58]} 34. Rxe4 {[%emt 0:00:06]} fxe4 {[%emt 0:00:26]} 35. Nf4 {[%emt 0:00:08]} Kf7 {[%emt 0:00:28]} 36. Kf1 {[%emt 0:00:13]} Kf6 {[%emt 0:00:36]} 37. Ke2 {[%emt 0:00:44]} Kf5 {[%emt 0:00:26]} 38. g3 {[%emt 0:00:28]} h4 {[%emt 0:01:26]} 39. Ng2 {[%emt 0:00:37]} hxg3 {[%emt 0:00:26]} 40. fxg3 {[%emt 0:00:12]} a5 {[%emt 0:01:57]} 41. Ne3+ {[%emt 0:01:59]} Ke5 {[%emt 0:00:16]} 42. Ng4+ {[%emt 0:02:46]} Kf5 {[%emt 0:05:20]} 43. Nh6+ {[%emt 0:00:25]} Kg5 {[%emt 0:01:12]} 44. Nf7+ {[%emt 0:00:17]} Kf6 {[%emt 0:00:47]} 45. Nd8 {[%emt 0:00:09]} b5 {[%emt 0:02:02]} 46. Nxc6 {[%emt 0:00:16]} a4 {[%emt 0:00:11]} 47. Na7 {[%emt 0:00:13]} axb3 {[%emt 0:00:45]} 48. axb3 {[%emt 0:00:06]} g5 {[%emt 0:01:05]} 49. Nxb5 {[%emt 0:00:18]} Ke5 {[%emt 0:00:21]} 50. b4 {[%emt 0:01:07]} d4 {[%emt 0:00:24]} 51. Nxd4 {[%emt 0:00:21]} Kxd4 {[%emt 0:00:01]} 52. h4 {[%emt 0:00:08]} 1-0

[Event "AUT-ch U14 Boys 2022"]
[Site "Sankt Veit an der Glan"]
[Date "2022.04.10"]
[Round "2"]
[White "Ernst, Robert"]
[Black "Radnaev, Nomin"]
[Result "1-0"]
[ECO "E40"]
[WhiteElo "1792"]
[BlackElo "1766"]
[Annotator "NA RC"]
[PlyCount "29"]
[EventDate "2022.04.11"]
[EventType "swiss"]
[EventCountry "AUT"]
[SourceTitle "playchess.com"]
[Source "ChessBase"]
[SourceQuality "1"]
[TimeControl "5400+30"]

1. d4 {[%emt 0:00:03]} Nf6 {[%emt 0:00:35]} 2. c4 {[%emt 0:00:09]} e6 {[%emt 0:00:24]} 3. Nc3 {[%emt 0:00:10]} Bb4 {[%emt 0:00:35]} 4. e3 {[%emt 0:00:11]} Bxc3+ {[%emt 0:00:45]} 5. bxc3 {[%emt 0:00:10]} b6 {[%emt 0:00:04]} 6. Qf3 {[%emt 0:12:13]} c6 {[%emt 0:01:30]} 7. Ba3 {[%emt 0:00:58]} Bb7 {[%emt 0:04:19]} 8. Bd6 {[%emt 0:09:07]} Na6 {[%emt 0:01:00]} 9. Rb1 {[%emt 0:03:32]} Qc8 {[%emt 0:04:12]} 10. Qg3 {[%emt 0:02:09]} Rg8 {[%emt 0:04:33]} 11. Bd3 {[%emt 0:02:33]} h6 {[%emt 0:00:57]} 12. e4 {[%emt 0:17:23]} c5 {[%emt 0:03:09]} 13. e5 {[%emt 0:01:29]} Ne4 {[%emt 0:02:36]} 14. Bxe4 {[%emt 0:00:19]} Bxe4 {[%emt 0:00:06]} 15. Qh4 {[%emt 0:00:02]} 1-0

[Event "AUT-ch U14 Boys 2022"]
[Site "Sankt Veit an der Glan"]
[Date "2022.04.10"]
[Round "2"]
[White "Pavlov, Alexander"]
[Black "Winkelbauer, Christian"]
[Result "1-0"]
[ECO "C11"]
[WhiteElo "1751"]
[BlackElo "1577"]
[Annotator "NA RC"]
[PlyCount "33"]
[EventDate "2022.04.11"]
[EventType "swiss"]
[EventCountry "AUT"]
[SourceTitle "playchess.com"]
[Source "ChessBase"]
[SourceQuality "1"]
[TimeControl "5400+30"]

1. e4 {[%emt 0:00:02]} e6 {[%emt 0:00:17]} 2. d4 {[%emt 0:00:17]} d5 {[%emt 0:00:25]} 3. Nc3 {[%emt 0:00:20]} Nf6 {[%emt 0:00:37]} 4. e5 {[%emt 0:00:29]} Nfd7 {[%emt 0:00:00]} 5. Nf3 {[%emt 0:00:19]} c5 {[%emt 0:00:50]} 6. dxc5 {[%emt 0:00:27]} Bxc5 {[%emt 0:00:45]} 7. Bd3 {[%emt 0:00:32]} Nc6 {[%emt 0:01:21]} 8. Bf4 {[%emt 0:00:21]} O-O {[%emt 0:01:14]} 9. Bxh7+ {[%emt 0:00:20]} Kh8 {[%emt 0:08:00]} 10. Bd3 {[%emt 0:00:37]} Be7 {[%emt 0:01:39]} 11. Ng5 {[%emt 0:03:29]} g6 {[%emt 0:01:03]} 12. Qg4 {[%emt 0:01:42]} Kg8 {[%emt 0:10:36]} 13. Qh4 {[%emt 0:00:54]} Bxg5 {[%emt 0:00:14]} 14. Bxg5 {[%emt 0:00:13]} Qe8 {[%emt 0:01:49]} 15. Bf6 {[%emt 0:00:32]} Nxf6 {[%emt 0:00:12]} 16. exf6 {[%emt 0:00:13]} Ne5 {[%emt 0:02:03]} 17. Qh6 {[%emt 0:00:22]} 1-0

[Event "AUT-ch U14 Boys 2022"]
[Site "Sankt Veit an der Glan"]
[Date "2022.04.10"]
[Round "2"]
[White "Standhartinger, Joachim"]
[Black "Gan-Erdene, Ganbat"]
[Result "1/2-1/2"]
[ECO "C54"]
[WhiteElo "1729"]
[BlackElo "1526"]
[Annotator "NA RC"]
[PlyCount "94"]
[EventDate "2022.04.11"]
[EventType "swiss"]
[EventCountry "AUT"]
[SourceTitle "playchess.com"]
[Source "ChessBase"]
[SourceQuality "1"]
[TimeControl "5400+30"]

1. e4 {[%emt 0:00:05]} e5 {[%emt 0:00:03]} 2. Nf3 {[%emt 0:00:06]} Nc6 {[%emt 0:00:06]} 3. Bc4 {[%emt 0:00:06]} Bc5 {[%emt 0:00:03]} 4. O-O {[%emt 0:00:14]} d6 {[%emt 0:00:20]} 5. c3 {[%emt 0:00:15]} Bg4 {[%emt 0:01:12]} 6. d3 {[%emt 0:00:19]} Nf6 {[%emt 0:01:14]} 7. Nbd2 {[%emt 0:00:13]} O-O {[%emt 0:01:17]} 8. h3 {[%emt 0:00:09]} Bxf3 {[%emt 0:01:45]} 9. Nxf3 {[%emt 0:00:35]} h6 {[%emt 0:00:34]} 10. Re1 {[%emt 0:04:43]} Re8 {[%emt 0:05:42]} 11. a4 {[%emt 0:01:29]} a5 {[%emt 0:01:05]} 12. Qb3 {[%emt 0:08:50]} Qd7 {[%emt 0:02:21]} 13. Be3 {[%emt 0:02:52]} Bxe3 {[%emt 0:06:04]} 14. Rxe3 {[%emt 0:00:11]} Na7 {[%emt 0:19:33]} 15. Nh4 {[%emt 0:06:01]} c6 {[%emt 0:09:16]} 16. Qd1 {[%emt 0:18:51]} d5 {[%emt 0:05:07]} 17. exd5 {[%emt 0:02:08]} cxd5 {[%emt 0:00:28]} 18. Bb3 {[%emt 0:01:35]} Rad8 {[%emt 0:02:43]} 19. Qf3 {[%emt 0:14:24]} Nc6 {[%emt 0:09:54]} 20. Nf5 {[%emt 0:07:44]} e4 {[%emt 0:07:50]} 21. dxe4 {[%emt 0:00:59]} dxe4 {[%emt 0:02:38]} 22. Qf4 {[%emt 0:00:27]} Re5 {[%emt 0:01:57]} 23. Nxh6+ {[%emt 0:02:04]} gxh6 {[%emt 0:02:21]} 24. Qxf6 {[%emt 0:00:21]} Qe7 {[%emt 0:07:37]} 25. Qxh6 {[%emt 0:08:04]} Rg5 {[%emt 0:01:45]} 26. Rxe4 {[%emt 0:02:36]} Rxg2+ {[%emt 0:01:35]} 27. Kxg2 {[%emt 0:01:23]} Qxe4+ {[%emt 0:00:13]} 28. Kg1 {[%emt 0:00:43]} Qf5 {[%emt 0:01:44]} 29. Qe3 {[%emt 0:02:37]} Rd3 {[%emt 0:01:47]} 30. Bc2 {[%emt 0:09:07]} Qg6+ {[%emt 0:00:24]} 31. Kf1 {[%emt 0:00:09]} Rxe3 {[%emt 0:01:02]} 32. Bxg6 {[%emt 0:00:05]} Rxh3 {[%emt 0:00:12]} 33. Be4 {[%emt 0:00:50]} Rh6 {[%emt 0:01:55]} 34. Rd1 {[%emt 0:00:55]} Re6 {[%emt 0:00:28]} 35. Bd5 {[%emt 0:02:06]} Re7 {[%emt 0:00:47]} 36. Bxc6 {[%emt 0:00:47]} bxc6 {[%emt 0:00:06]} 37. Rd6 {[%emt 0:00:17]} Rb7 {[%emt 0:00:40]} 38. Rxc6 {[%emt 0:02:48]} Rxb2 {[%emt 0:00:08]} 39. Kg2 {[%emt 0:01:05]} Kf8 {[%emt 0:00:47]} 40. Kf3 {[%emt 0:00:19]} Ke7 {[%emt 0:00:23]} 41. Ke3 {[%emt 0:00:57]} Ra2 {[%emt 0:02:23]} 42. Rc4 {[%emt 0:00:28]} Kd6 {[%emt 0:00:36]} 43. f4 {[%emt 0:00:44]} f5 {[%emt 0:00:29]} 44. Kd3 {[%emt 0:01:02]} Kd5 {[%emt 0:01:03]} 45. Rd4+ {[%emt 0:00:42]} Kc5 {[%emt 0:00:14]} 46. Rc4+ {[%emt 0:00:06]} Kd5 {[%emt 0:00:31]} 47. Rd4+ {[%emt 0:00:37]} Kc5 {[%emt 0:01:07]} 1/2-1/2

[Event "AUT-ch U14 Boys 2022"]
[Site "Sankt Veit an der Glan"]
[Date "2022.04.10"]
[Round "2"]
[White "Puschnig, Jason"]
[Black "Wohlgenannt, Nicolas"]
[Result "0-1"]
[ECO "B13"]
[WhiteElo "1721"]
[BlackElo "1692"]
[Annotator "NA RC"]
[PlyCount "60"]
[EventDate "2022.04.11"]
[EventType "swiss"]
[EventCountry "AUT"]
[SourceTitle "playchess.com"]
[Source "ChessBase"]
[SourceQuality "1"]
[TimeControl "5400+30"]

1. e4 {[%emt 0:00:03]} c6 {[%emt 0:00:07]} 2. Nc3 {[%emt 0:01:12]} d5 {[%emt 0:00:21]} 3. exd5 {[%emt 0:00:16]} cxd5 {[%emt 0:00:04]} 4. d4 {[%emt 0:00:21]} Nc6 {[%emt 0:00:26]} 5. Bf4 {[%emt 0:02:22]} Nf6 {[%emt 0:00:52]} 6. Nf3 {[%emt 0:00:27]} Bg4 {[%emt 0:00:25]} 7. Be2 {[%emt 0:02:23]} Qb6 {[%emt 0:04:21]} 8. Bb5 {[%emt 0:10:25]} e6 {[%emt 0:03:53]} 9. Bxc6+ {[%emt 0:06:33]} bxc6 {[%emt 0:00:42]} 10. b3 {[%emt 0:06:07]} Bb4 {[%emt 0:02:10]} 11. Qd3 {[%emt 0:13:56]} Ne4 {[%emt 0:01:06]} 12. Bd2 {[%emt 0:05:07]} Bf5 {[%emt 0:08:25]} 13. Na4 {[%emt 0:04:24]} Bxd2+ {[%emt 0:01:54]} 14. Nxd2 {[%emt 0:01:21]} Qa5 {[%emt 0:03:58]} 15. Qe3 {[%emt 0:03:30]} Rc8 {[%emt 0:03:22]} 16. Rd1 {[%emt 0:04:17]} c5 {[%emt 0:03:56]} 17. c3 {[%emt 0:08:41]} cxd4 {[%emt 0:05:39]} 18. Qxd4 {[%emt 0:03:18]} O-O {[%emt 0:06:19]} 19. O-O {[%emt 0:01:03]} Nxc3 {[%emt 0:03:52]} 20. Nxc3 {[%emt 0:03:13]} Rxc3 {[%emt 0:01:16]} 21. Nf3 {[%emt 0:06:11]} Rfc8 {[%emt 0:07:09]} 22. Nh4 {[%emt 0:07:21]} Be4 {[%emt 0:06:49]} 23. f3 {[%emt 0:03:25]} Bc2 {[%emt 0:00:35]} 24. Rd2 {[%emt 0:02:28]} Qc5 {[%emt 0:01:02]} 25. Rc1 {[%emt 0:03:42]} Qxd4+ {[%emt 0:01:25]} 26. Rxd4 {[%emt 0:00:13]} Kf8 {[%emt 0:00:55]} 27. Rb4 {[%emt 0:00:32]} g5 {[%emt 0:00:22]} 28. Rb7 {[%emt 0:00:53]} R3c7 {[%emt 0:00:33]} 29. Rxc7 {[%emt 0:00:35]} Rxc7 {[%emt 0:00:05]} 30. Re1 {[%emt 0:00:37]} gxh4 {[%emt 0:00:12]} 0-1

[Event "AUT-ch U14 Boys 2022"]
[Site "Sankt Veit an der Glan"]
[Date "2022.04.10"]
[Round "2"]
[White "Guba, Viktor"]
[Black "Leitgeb, Julian"]
[Result "0-1"]
[ECO "B48"]
[WhiteElo "1598"]
[BlackElo "2004"]
[Annotator "NA RC"]
[PlyCount "60"]
[EventDate "2022.04.11"]
[EventType "swiss"]
[EventCountry "AUT"]
[SourceTitle "playchess.com"]
[Source "ChessBase"]
[SourceQuality "1"]
[TimeControl "5400+30"]

1. e4 {[%emt 0:00:07]} c5 {[%emt 0:00:02]} 2. Nf3 {[%emt 0:00:14]} e6 {[%emt 0:00:05]} 3. d4 {[%emt 0:00:13]} cxd4 {[%emt 0:00:05]} 4. Nxd4 {[%emt 0:00:14]} Nc6 {[%emt 0:00:04]} 5. Nc3 {[%emt 0:00:37]} Qc7 {[%emt 0:00:07]} 6. Be3 {[%emt 0:02:43]} a6 {[%emt 0:00:36]} 7. Qd2 {[%emt 0:01:20]} Nf6 {[%emt 0:01:40]} 8. f3 {[%emt 0:00:55]} b5 {[%emt 0:00:35]} 9. Bd3 {[%emt 0:02:08]} Ne5 {[%emt 0:08:53]} 10. O-O {[%emt 0:07:11]} Be7 {[%emt 0:09:25]} 11. h3 {[%emt 0:08:50]} b4 {[%emt 0:09:37]} 12. Nce2 {[%emt 0:05:43]} Bb7 {[%emt 0:05:12]} 13. Rac1 {[%emt 0:04:24]} O-O {[%emt 0:07:13]} 14. c4 {[%emt 0:04:52]} Rfd8 {[%emt 0:05:28]} 15. a3 {[%emt 0:06:47]} bxa3 {[%emt 0:02:46]} 16. b3 {[%emt 0:03:11]} Bb4 {[%emt 0:03:02]} 17. Qc2 {[%emt 0:02:36]} Rac8 {[%emt 0:02:49]} 18. Bg5 {[%emt 0:05:51]} Qb6 {[%emt 0:06:55]} 19. Kh1 {[%emt 0:03:48]} d5 {[%emt 0:02:43]} 20. Bxf6 {[%emt 0:02:12]} gxf6 {[%emt 0:00:02]} 21. exd5 {[%emt 0:00:50]} Nxd3 {[%emt 0:00:50]} 22. Qxd3 {[%emt 0:00:06]} exd5 {[%emt 0:01:09]} 23. Qf5 {[%emt 0:11:18]} dxc4 {[%emt 0:03:56]} 24. Qf4 {[%emt 0:01:56]} cxb3 {[%emt 0:04:15]} 25. Nf5 {[%emt 0:02:27]} Bf8 {[%emt 0:01:56]} 26. Nh6+ {[%emt 0:02:44]} Bxh6 {[%emt 0:01:51]} 27. Qxh6 {[%emt 0:00:05]} Rxc1 {[%emt 0:00:31]} 28. Rxc1 {[%emt 0:00:23]} b2 {[%emt 0:00:16]} 29. Rc4 {[%emt 0:00:05]} b1=Q+ {[%emt 0:00:22]} 30. Kh2 {[%emt 0:00:09]} Qd6+ {[%emt 0:00:54]} 0-1